[Event "10th Iberoamericano-ch 2024"]
[Site "Linares"]
[Date "2024.09.26"]
[Round "3.37"]
[White "Gavarrete, Joel"]
[Black "Bendayan Claros, Aaron"]
[Result "1-0"]
[ECO "A05"]
[WhiteElo "2059"]
[BlackElo "2200"]
[Annotator "RC"]
[PlyCount "152"]
[EventDate "2024.09.25"]
[EventType "swiss"]
[EventCountry "ESP"]
[SourceTitle "playchess.com"]
[Source "ChessBase"]
[SourceQuality "1"]
[TimeControl "5400+30"]

1. Nf3 {[%emt 0:01:39]} Nf6 {[%emt 0:00:15]} 2. b3 {[%emt 0:00:07]} d5 {[%emt 0:01:02]} 3. Bb2 {[%emt 0:00:07]} Bf5 {[%emt 0:00:39]} 4. e3 {[%emt 0:00:21]} e6 {[%emt 0:00:31]} 5. d4 {[%emt 0:01:24]} h6 {[%emt 0:00:16]} 6. Bd3 {[%emt 0:00:33]} Bxd3 {[%emt 0:01:41]} 7. Qxd3 {[%emt 0:00:11]} c6 {[%emt 0:09:04]} 8. Nbd2 {[%emt 0:00:28]} Nbd7 {[%emt 0:00:32]} 9. O-O {[%emt 0:00:22]} Be7 {[%emt 0:05:12]} 10. c4 {[%emt 0:07:53]} O-O {[%emt 0:00:25]} 11. Ne5 {[%emt 0:02:23]} a5 {[%emt 0:07:00]} 12. a3 {[%emt 0:05:15]} Kh8 {[%emt 0:30:20]} 13. f4 {[%emt 0:01:16]} Bd6 {[%emt 0:08:25]} 14. c5 {[%emt 0:14:36]} Bc7 {[%emt 0:01:36]} 15. b4 {[%emt 0:02:33]} Qe7 {[%emt 0:02:01]} 16. b5 {[%emt 0:03:01]} Nxe5 {[%emt 0:00:39]} 17. fxe5 {[%emt 0:00:25]} Nd7 {[%emt 0:00:52]} 18. b6 {[%emt 0:03:02]} Bd8 {[%emt 0:00:29]} 19. e4 {[%emt 0:01:52]} f6 {[%emt 0:04:39]} 20. exf6 {[%emt 0:00:17]} Nxf6 {[%emt 0:00:28]} 21. e5 {[%emt 0:02:34]} Nh7 {[%emt 0:03:15]} 22. a4 {[%emt 0:02:52]} Ng5 {[%emt 0:10:28]} 23. Rxf8+ {[%emt 0:00:39]} Qxf8 {[%emt 0:00:03]} 24. Rf1 {[%emt 0:00:09]} Qe8 {[%emt 0:00:19]} 25. g3 {[%emt 0:09:50]} Be7 {[%emt 0:00:28]} 26. Kg2 {[%emt 0:04:52]} Kg8 {[%emt 0:01:25]} 27. Bc3 {[%emt 0:00:43]} Qh5 {[%emt 0:01:09]} 28. h4 {[%emt 0:03:38]} Nf7 {[%emt 0:00:46]} 29. Qf3 {[%emt 0:02:49]} Qxf3+ {[%emt 0:01:47]} 30. Nxf3 {[%emt 0:00:12]} h5 {[%emt 0:01:31]} 31. Re1 {[%emt 0:10:12]} g5 {[%emt 0:04:09]} 32. Nd2 {[%emt 0:02:40]} gxh4 {[%emt 0:00:30]} 33. gxh4 {[%emt 0:03:04]} Bxh4 {[%emt 0:02:28]} 34. Rh1 {[%emt 0:00:05]} Bg5 {[%emt 0:00:09]} 35. Nb3 {[%emt 0:00:02]} h4 {[%emt 0:00:33]} 36. Nxa5 {[%emt 0:00:52]} Nd8 {[%emt 0:00:06]} 37. Kf3 {[%emt 0:01:08]} Kf7 {[%emt 0:00:14]} 38. Rh3 {[%emt 0:02:13]} Be7 {[%emt 0:00:26]} 39. Kg4 {[%emt 0:01:24]} Ke8 {[%emt 0:00:38]} 40. Rf3 {[%emt 0:00:31]} Kd7 {[%emt 0:00:13]} 41. Kh5 {[%emt 0:01:23]} Ke8 {[%emt 0:00:28]} 42. Kg6 {[%emt 0:00:33]} Kd7 {[%emt 0:00:12]} 43. Be1 {[%emt 0:00:35]} Ke8 {[%emt 0:00:42]} 44. Ra3 {[%emt 0:01:11]} Kd7 {[%emt 0:01:28]} 45. Ra1 {[%emt 0:01:13]} Ra6 {[%emt 0:00:50]} 46. Nb3 {[%emt 0:01:00]} Ke8 {[%emt 0:00:03]} 47. a5 {[%emt 0:00:13]} Nf7 {[%emt 0:00:04]} 48. Bd2 {[%emt 0:00:16]} Nh8+ {[%emt 0:02:14]} 49. Kg7 {[%emt 0:00:54]} Nf7 {[%emt 0:00:03]} 50. Rf1 {[%emt 0:00:18]} Nd8 {[%emt 0:01:43]} 51. Rf3 {[%emt 0:00:03]} Ra8 {[%emt 0:00:09]} 52. Be1 {[%emt 0:02:19]} Ra6 {[%emt 0:00:50]} 53. Rh3 {[%emt 0:00:35]} Ra8 {[%emt 0:00:59]} 54. Bxh4 {[%emt 0:00:12]} Bf8+ {[%emt 0:00:11]} 55. Kg6 {[%emt 0:00:54]} Nf7 {[%emt 0:00:22]} 56. Rf3 {[%emt 0:00:45]} Nh6 {[%emt 0:00:40]} 57. Rxf8+ {[%emt 0:02:29]} Kxf8 {[%emt 0:00:02]} 58. Kxh6 {[%emt 0:00:08]} Kf7 {[%emt 0:00:06]} 59. Bf6 {[%emt 0:00:11]} Ra6 {[%emt 0:00:52]} 60. Bd8 {[%emt 0:00:14]} Ra8 {[%emt 0:00:09]} 61. Bc7 {[%emt 0:00:44]} Rh8+ {[%emt 0:00:58]} 62. Kg5 {[%emt 0:00:06]} Rg8+ {[%emt 0:00:04]} 63. Kf4 {[%emt 0:00:06]} Ra8 {[%emt 0:00:07]} 64. Bd6 {[%emt 0:00:40]} Ke8 {[%emt 0:00:41]} 65. Kg4 {[%emt 0:00:21]} Kf7 {[%emt 0:01:08]} 66. Kf4 {[%emt 0:00:23]} Ke8 {[%emt 0:00:07]} 67. Ke3 {[%emt 0:00:01]} Kd7 {[%emt 0:00:36]} 68. Kd3 {[%emt 0:00:01]} Kc8 {[%emt 0:00:51]} 69. Kc3 {[%emt 0:00:04]} Kd7 {[%emt 0:00:04]} 70. Kb4 {[%emt 0:00:04]} Kc8 {[%emt 0:00:25]} 71. Nd2 {[%emt 0:00:38]} Kd8 {[%emt 0:00:19]} 72. Nf3 {[%emt 0:00:08]} Ke8 {[%emt 0:00:18]} 73. Ng5 {[%emt 0:00:19]} Kd7 {[%emt 0:00:02]} 74. Ka4 {[%emt 0:01:20]} Ra6 {[%emt 0:02:19]} 75. Bb8 {[%emt 0:00:28]} Ra8 {[%emt 0:00:14]} 76. Ba7 {[%emt 0:00:04]} Rf8 1-0

[Event "10th Iberoamericano-ch 2024"]
[Site "Linares"]
[Date "2024.09.26"]
[Round "3.38"]
[White "Rodriguez Redondo, Adhara"]
[Black "Castillo Beitia, Ashley Alexandra"]
[Result "1/2-1/2"]
[ECO "B76"]
[WhiteElo "2184"]
[BlackElo "2071"]
[Annotator "RC"]
[PlyCount "135"]
[EventDate "2024.09.25"]
[EventType "swiss"]
[EventCountry "ESP"]
[SourceTitle "playchess.com"]
[Source "ChessBase"]
[SourceQuality "1"]
[TimeControl "5400+30"]

1. e4 {[%emt 0:00:04]} c5 {[%emt 0:00:02]} 2. Nf3 {[%emt 0:00:05]} d6 {[%emt 0:00:10]} 3. d4 {[%emt 0:00:05]} cxd4 {[%emt 0:00:09]} 4. Nxd4 {[%emt 0:00:05]} Nf6 {[%emt 0:00:07]} 5. Nc3 {[%emt 0:00:05]} g6 {[%emt 0:00:07]} 6. Be3 {[%emt 0:00:13]} Bg7 {[%emt 0:00:06]} 7. f3 {[%emt 0:00:04]} Nc6 {[%emt 0:00:06]} 8. Qd2 {[%emt 0:00:19]} O-O {[%emt 0:00:09]} 9. O-O-O {[%emt 0:00:05]} d5 {[%emt 0:00:07]} 10. exd5 {[%emt 0:00:20]} Nxd5 {[%emt 0:00:20]} 11. Nxc6 {[%emt 0:00:06]} bxc6 {[%emt 0:00:06]} 12. Bd4 {[%emt 0:00:03]} e5 {[%emt 0:00:08]} 13. Bc5 {[%emt 0:00:04]} Re8 {[%emt 0:00:08]} 14. Ne4 {[%emt 0:00:41]} Qc7 {[%emt 0:07:38]} 15. h4 f5 {[%emt 0:05:34]} 16. Nd6 {[%emt 0:02:23]} Rd8 {[%emt 0:00:10]} 17. Nxc8 {[%emt 0:00:22]} Raxc8 {[%emt 0:00:12]} 18. h5 {[%emt 0:00:51]} Nb6 {[%emt 0:02:03]} 19. Bxb6 {[%emt 0:00:38]} Qxb6 {[%emt 0:01:42]} 20. Bc4+ {[%emt 0:12:44]} Kf8 {[%emt 0:00:44]} 21. Qc3 {[%emt 0:14:25]} Qc5 {[%emt 0:10:53]} 22. Qb3 {[%emt 0:07:13]} Qe7 {[%emt 0:21:13]} 23. hxg6 {[%emt 0:12:21]} Bh6+ {[%emt 0:07:08]} 24. Kb1 {[%emt 0:00:43]} hxg6 {[%emt 0:01:52]} 25. a4 {[%emt 0:05:20]} Kg7 {[%emt 0:02:43]} 26. g4 {[%emt 0:04:58]} fxg4 {[%emt 0:06:52]} 27. fxg4 {[%emt 0:01:31]} Bf4 {[%emt 0:00:15]} 28. Rxd8 {[%emt 0:03:28]} Qxd8 {[%emt 0:01:54]} 29. Qh3 {[%emt 0:04:06]} Qh8 {[%emt 0:02:02]} 30. Qf3 {[%emt 0:01:53]} Qf8 {[%emt 0:01:19]} 31. Be6 {[%emt 0:03:04]} Rb8 {[%emt 0:06:48]} 32. Qxc6 {[%emt 0:03:17]} Qb4 {[%emt 0:01:12]} 33. Qd7+ {[%emt 0:05:42]} Kf6 {[%emt 0:00:26]} 34. Bb3 {[%emt 0:01:54]} Qb7 {[%emt 0:04:11]} 35. Qe6+ {[%emt 0:01:28]} Kg5 {[%emt 0:01:14]} 36. Rd1 {[%emt 0:01:20]} Qf3 {[%emt 0:03:50]} 37. Rd6 {[%emt 0:01:26]} Qxg4 {[%emt 0:01:03]} 38. Qxg6+ {[%emt 0:01:20]} Kh4 {[%emt 0:00:02]} 39. Qh7+ {[%emt 0:01:24]} Qh5 {[%emt 0:01:08]} 40. Qe4 {[%emt 0:02:27]} Rb6 {[%emt 0:01:04]} 41. Rd3 {[%emt 0:02:37]} Qg6 {[%emt 0:01:00]} 42. Qh1+ {[%emt 0:02:40]} Kg5 {[%emt 0:00:27]} 43. Bd5 {[%emt 0:01:14]} Rb4 {[%emt 0:02:30]} 44. Qg1+ {[%emt 0:00:38]} Kf5 {[%emt 0:00:53]} 45. Qxa7 {[%emt 0:01:18]} Rd4 {[%emt 0:01:19]} 46. Qd7+ {[%emt 0:01:37]} Kf6 {[%emt 0:00:40]} 47. Qe6+ {[%emt 0:02:51]} Kg5 {[%emt 0:00:50]} 48. Qxg6+ {[%emt 0:02:03]} Kxg6 {[%emt 0:00:01]} 49. Rxd4 {[%emt 0:00:23]} exd4 {[%emt 0:00:03]} 50. b4 {[%emt 0:00:38]} Bd2 {[%emt 0:04:04]} 51. b5 {[%emt 0:00:02]} Kf6 {[%emt 0:00:29]} 52. Kb2 {[%emt 0:00:29]} Ke5 {[%emt 0:01:20]} 53. Bc6 {[%emt 0:01:06]} Kd6 {[%emt 0:00:26]} 54. Kb3 {[%emt 0:00:37]} Kc5 {[%emt 0:00:08]} 55. Be4 {[%emt 0:00:25]} Bc3 {[%emt 0:01:10]} 56. Bd3 {[%emt 0:00:21]} Bd2 {[%emt 0:01:21]} 57. Bg6 {[%emt 0:00:34]} Bc3 {[%emt 0:00:17]} 58. Bf7 {[%emt 0:00:16]} Bd2 {[%emt 0:00:30]} 59. Kb2 {[%emt 0:00:31]} Kb4 {[%emt 0:00:08]} 60. Bb3 {[%emt 0:00:26]} Kc5 {[%emt 0:00:08]} 61. Kb1 {[%emt 0:00:14]} Kb6 {[%emt 0:00:19]} 62. c4 {[%emt 0:01:16]} dxc3 {[%emt 0:00:19]} 63. Kc2 {[%emt 0:00:05]} Be1 {[%emt 0:00:06]} 64. Kd3 {[%emt 0:00:15]} c2 {[%emt 0:00:16]} 65. Bxc2 {[%emt 0:00:05]} Ba5 {[%emt 0:00:03]} 66. Kc4 {[%emt 0:00:11]} Be1 {[%emt 0:00:03]} 67. Kd5 {[%emt 0:00:12]} Ba5 {[%emt 0:00:07]} 68. Kd4 1/2-1/2

[Event "10th Iberoamericano-ch 2024"]
[Site "Linares"]
[Date "2024.09.26"]
[Round "3.39"]
[White "Rodriguez Lopez, Rafael"]
[Black "Aragon Trujillo, Ricardo M."]
[Result "1/2-1/2"]
[ECO "A08"]
[WhiteElo "2162"]
[BlackElo "2057"]
[Annotator "RC"]
[PlyCount "231"]
[EventDate "2024.09.25"]
[EventType "swiss"]
[EventCountry "ESP"]
[SourceTitle "playchess.com"]
[Source "ChessBase"]
[SourceQuality "1"]
[TimeControl "5400+30"]

1. Nf3 {[%emt 0:00:07]} d5 {[%emt 0:00:46]} 2. g3 {[%emt 0:00:05]} Nf6 {[%emt 0:01:12]} 3. Bg2 {[%emt 0:00:05]} c5 {[%emt 0:03:16]} 4. O-O {[%emt 0:00:06]} Nc6 {[%emt 0:00:04]} 5. d4 {[%emt 0:00:06]} e6 {[%emt 0:01:22]} 6. c4 {[%emt 0:00:07]} cxd4 {[%emt 0:10:45]} 7. cxd5 {[%emt 0:00:17]} exd5 {[%emt 0:00:40]} 8. Nxd4 {[%emt 0:00:08]} Be7 {[%emt 0:00:32]} 9. Nc3 {[%emt 0:01:34]} O-O {[%emt 0:00:23]} 10. Be3 {[%emt 0:00:54]} a6 {[%emt 0:00:52]} 11. Qc2 {[%emt 0:02:36]} Be6 {[%emt 0:05:29]} 12. Rad1 {[%emt 0:00:14]} Rc8 {[%emt 0:01:15]} 13. Qd3 {[%emt 0:15:32]} Ne5 {[%emt 0:06:13]} 14. Qb1 {[%emt 0:00:49]} Nc4 {[%emt 0:03:05]} 15. Bc1 {[%emt 0:02:13]} Qa5 {[%emt 0:04:42]} 16. Nb3 {[%emt 0:00:39]} Qd8 {[%emt 0:09:35]} 17. e4 {[%emt 0:14:52]} Na3 {[%emt 0:14:03]} 18. Qd3 {[%emt 0:06:47]} dxe4 {[%emt 0:01:55]} 19. Qxd8 {[%emt 0:00:41]} Bxd8 {[%emt 0:01:11]} 20. Nxe4 {[%emt 0:00:28]} Nc4 {[%emt 0:02:18]} 21. Nxf6+ {[%emt 0:02:17]} Bxf6 {[%emt 0:00:09]} 22. Bxb7 {[%emt 0:00:08]} Rb8 {[%emt 0:01:11]} 23. Bxa6 {[%emt 0:02:22]} Rb6 {[%emt 0:00:45]} 24. Nc5 {[%emt 0:01:02]} Nxb2 {[%emt 0:01:10]} 25. Nxe6 {[%emt 0:04:37]} Rxe6 {[%emt 0:01:45]} 26. Bxb2 {[%emt 0:00:27]} Bxb2 {[%emt 0:05:44]} 27. Bc4 {[%emt 0:00:08]} Re7 {[%emt 0:00:36]} 28. Rd2 {[%emt 0:01:27]} Ba3 {[%emt 0:00:41]} 29. Rfd1 {[%emt 0:00:10]} g6 {[%emt 0:04:16]} 30. Rd3 {[%emt 0:00:07]} Ra8 {[%emt 0:00:57]} 31. Rd7 {[%emt 0:03:14]} Ra7 {[%emt 0:02:23]} 32. Rd8+ {[%emt 0:01:42]} Kg7 {[%emt 0:00:52]} 33. Kg2 {[%emt 0:00:09]} h5 {[%emt 0:01:19]} 34. R1d3 {[%emt 0:01:42]} Rec7 {[%emt 0:01:09]} 35. Bb3 {[%emt 0:00:14]} Re7 {[%emt 0:00:35]} 36. Kf3 {[%emt 0:01:02]} Ra6 {[%emt 0:01:55]} 37. R8d7 {[%emt 0:01:47]} Ra7 {[%emt 0:03:59]} 38. R7d5 {[%emt 0:00:33]} Ra6 {[%emt 0:02:35]} 39. Kg2 {[%emt 0:00:26]} Raa7 {[%emt 0:00:24]} 40. h3 {[%emt 0:00:36]} Rec7 {[%emt 0:00:39]} 41. f4 {[%emt 0:00:32]} Re7 {[%emt 0:01:25]} 42. Kf3 {[%emt 0:00:08]} Kf6 {[%emt 0:00:33]} 43. g4 {[%emt 0:00:35]} hxg4+ {[%emt 0:00:09]} 44. hxg4 {[%emt 0:00:04]} Kg7 {[%emt 0:00:28]} 45. g5 {[%emt 0:00:27]} f6 {[%emt 0:00:55]} 46. Rd8 {[%emt 0:00:40]} Reb7 {[%emt 0:01:55]} 47. Rg8+ {[%emt 0:00:27]} Kh7 {[%emt 0:00:03]} 48. Rdd8 {[%emt 0:00:13]} fxg5 {[%emt 0:00:27]} 49. Rh8+ {[%emt 0:00:23]} Kg7 {[%emt 0:00:11]} 50. fxg5 {[%emt 0:00:14]} Rxb3+ {[%emt 0:01:25]} 51. axb3 {[%emt 0:00:05]} Be7 {[%emt 0:00:04]} 52. Ra8 {[%emt 0:01:25]} Rd7 {[%emt 0:00:25]} 53. Kf4 {[%emt 0:03:22]} Rb7 {[%emt 0:02:08]} 54. Ke5 {[%emt 0:00:37]} Rxb3 {[%emt 0:00:41]} 55. Ke6 {[%emt 0:01:45]} Re3+ {[%emt 0:00:33]} 56. Kd7 {[%emt 0:00:06]} Bxg5 {[%emt 0:00:26]} 57. Rag8+ {[%emt 0:01:03]} Kf7 {[%emt 0:01:07]} 58. Rf8+ {[%emt 0:00:10]} Kg7 {[%emt 0:00:03]} 59. Rhg8+ {[%emt 0:01:23]} Kh7 {[%emt 0:00:04]} 60. Ra8 {[%emt 0:00:14]} Bf4 {[%emt 0:00:59]} 61. Rgf8 {[%emt 0:00:34]} g5 {[%emt 0:01:09]} 62. Rf6 {[%emt 0:00:15]} Kg7 {[%emt 0:00:15]} 63. Rc6 {[%emt 0:01:26]} Rd3+ {[%emt 0:00:50]} 64. Ke6 {[%emt 0:00:13]} Kg6 {[%emt 0:00:10]} 65. Rg8+ {[%emt 0:00:28]} Kh5 {[%emt 0:00:04]} 66. Kf5 {[%emt 0:00:35]} Rd5+ {[%emt 0:00:08]} 67. Ke4 {[%emt 0:00:13]} Re5+ {[%emt 0:00:25]} 68. Kf3 {[%emt 0:00:13]} Re3+ {[%emt 0:00:06]} 69. Kf2 {[%emt 0:00:05]} Kg4 {[%emt 0:00:28]} 70. Rc4 {[%emt 0:00:24]} Ra3 {[%emt 0:00:37]} 71. Rc2 {[%emt 0:01:18]} Rh3 {[%emt 0:00:08]} 72. Kg1 {[%emt 0:01:39]} Be3+ {[%emt 0:00:44]} 73. Kg2 {[%emt 0:00:19]} Rg3+ {[%emt 0:00:12]} 74. Kf1 {[%emt 0:00:16]} Rf3+ {[%emt 0:00:57]} 75. Ke2 {[%emt 0:00:07]} Bf4 {[%emt 0:01:05]} 76. Rc4 {[%emt 0:00:22]} Re3+ {[%emt 0:00:10]} 77. Kf2 {[%emt 0:00:06]} Rf3+ {[%emt 0:00:03]} 78. Ke2 {[%emt 0:00:17]} Re3+ {[%emt 0:00:05]} 79. Kd1 {[%emt 0:00:53]} Rd3+ {[%emt 0:00:25]} 80. Kc2 {[%emt 0:00:09]} Rh3 {[%emt 0:00:23]} 81. Rc3 {[%emt 0:00:38]} Rh2+ {[%emt 0:00:58]} 82. Kd3 {[%emt 0:00:12]} Rd2+ {[%emt 0:00:07]} 83. Ke4 {[%emt 0:00:16]} Re2+ {[%emt 0:00:06]} 84. Kd5 {[%emt 0:00:24]} Re5+ {[%emt 0:00:22]} 85. Kd4 {[%emt 0:00:17]} Re7 {[%emt 0:00:30]} 86. Rc6 {[%emt 0:00:48]} Rd7+ {[%emt 0:00:18]} 87. Ke4 {[%emt 0:00:24]} Re7+ {[%emt 0:00:05]} 88. Kd5 {[%emt 0:00:10]} Re5+ {[%emt 0:00:08]} 89. Kd4 {[%emt 0:00:13]} Re1 {[%emt 0:00:15]} 90. Rcc8 {[%emt 0:01:03]} Rd1+ {[%emt 0:00:11]} 91. Ke4 {[%emt 0:00:19]} Re1+ {[%emt 0:00:05]} 92. Kd5 {[%emt 0:00:11]} Re5+ {[%emt 0:00:37]} 93. Kd4 {[%emt 0:00:05]} Re1 {[%emt 0:00:07]} 94. Rce8 {[%emt 0:00:13]} Rd1+ {[%emt 0:01:20]} 95. Ke4 {[%emt 0:00:18]} Re1+ {[%emt 0:00:06]} 96. Kd5 {[%emt 0:00:12]} Rd1+ {[%emt 0:00:09]} 97. Ke6 {[%emt 0:00:15]} Rd6+ {[%emt 0:01:23]} 98. Kf7 {[%emt 0:00:09]} Ra6 {[%emt 0:00:49]} 99. Re6 {[%emt 0:00:09]} Ra7+ {[%emt 0:01:15]} 100. Kg6 {[%emt 0:00:06]} Ra1 {[%emt 0:00:56]} 101. Rc8 {[%emt 0:00:19]} Rb1 {[%emt 0:00:45]} 102. Rc2 {[%emt 0:00:08]} Ra1 {[%emt 0:00:17]} 103. Rg2+ {[%emt 0:00:16]} Kh3 {[%emt 0:02:09]} 104. Ree2 {[%emt 0:00:21]} Ra5 {[%emt 0:00:47]} 105. Rg1 {[%emt 0:00:33]} Rb5 {[%emt 0:01:01]} 106. Re7 {[%emt 0:00:35]} Kh2 {[%emt 0:00:50]} 107. Ree1 {[%emt 0:00:43]} Kh3 {[%emt 0:00:56]} 108. Kh5 {[%emt 0:01:53]} g4+ {[%emt 0:00:58]} 109. Kg6 {[%emt 0:00:06]} Bh2 {[%emt 0:00:06]} 110. Rgf1 {[%emt 0:00:58]} g3 {[%emt 0:00:08]} 111. Rf5 {[%emt 0:00:11]} Rb6+ {[%emt 0:01:49]} 112. Rf6 {[%emt 0:02:35]} Rxf6+ {[%emt 0:00:10]} 113. Kxf6 {[%emt 0:00:07]} g2 {[%emt 0:00:07]} 114. Kf5 {[%emt 0:00:55]} g1=Q {[%emt 0:00:16]} 115. Rxg1 {[%emt 0:00:04]} Bxg1 {[%emt 0:00:11]} 116. Ke5 1/2-1/2